[Event "EYCC Girls-U16 2019"]
[Site "Bratislava"]
[Date "2019.08.06"]
[Round "5.8"]
[White "Srdanovic, Jovana"]
[Black "Hryzlova, Sofiia"]
[Result "0-1"]
[ECO "A85"]
[WhiteElo "1975"]
[BlackElo "1799"]
[Annotator "NA"]
[PlyCount "120"]
[EventDate "2019.08.02"]
[EventType "swiss"]
[EventCountry "SVK"]
[SourceTitle "playchess.com"]
[Source "ChessBase"]
[SourceQuality "1"]
[TimeControl "40/5400+30:1800+30"]

1. d4 {[%emt 0:00:00]} f5 {[%emt 0:00:04]} 2. c4 {[%emt 0:00:00]} Nf6 {[%emt 0:00:32]} 3. Nc3 {[%emt 0:00:00]} d6 {[%emt 0:00:34]} 4. Nf3 {[%emt 0:02:11]} g6 {[%emt 0:00:34]} 5. h3 {[%emt 0:09:57]} Bg7 {[%emt 0:02:37]} 6. Bf4 {[%emt 0:00:12]} c6 {[%emt 0:04:14]} 7. Qb3 {[%emt 0:05:05]} Qa5 {[%emt 0:05:22]} 8. e3 {[%emt 0:15:32]} Nbd7 {[%emt 0:08:54]} 9. Be2 {[%emt 0:01:44]} Ne4 {[%emt 0:12:51]} 10. O-O {[%emt 0:00:39]} e5 {[%emt 0:02:43]} 11. Bh2 {[%emt 0:00:54]} Nxc3 {[%emt 0:02:47]} 12. bxc3 {[%emt 0:00:41]} c5 {[%emt 0:01:05]} 13. Rfd1 {[%emt 0:09:34]} O-O {[%emt 0:02:51]} 14. Rd2 {[%emt 0:16:36]} f4 {[%emt 0:09:10]} 15. exf4 {[%emt 0:01:58]} exf4 {[%emt 0:01:00]} 16. Rad1 {[%emt 0:00:31]} Nf6 {[%emt 0:03:55]} 17. Bd3 {[%emt 0:00:24]} Nh5 {[%emt 0:02:41]} 18. Be4 {[%emt 0:00:56]} Qc7 {[%emt 0:01:43]} 19. Bd5+ {[%emt 0:03:58]} Kh8 {[%emt 0:00:22]} 20. Re1 {[%emt 0:01:01]} Nf6 {[%emt 0:07:27]} 21. Be6 {[%emt 0:03:13]} Bxe6 {[%emt 0:02:00]} 22. Rxe6 {[%emt 0:00:08]} Rae8 {[%emt 0:01:52]} 23. Rxe8 {[%emt 0:00:46]} Nxe8 {[%emt 0:00:56]} 24. Re2 {[%emt 0:00:32]} Qd7 {[%emt 0:04:22]} 25. Qc2 {[%emt 0:02:29]} Nc7 {[%emt 0:05:06]} 26. Qe4 {[%emt 0:03:40]} Qf7 {[%emt 0:02:15]} 27. Qd3 {[%emt 0:04:24]} cxd4 {[%emt 0:04:08]} 28. cxd4 {[%emt 0:00:16]} Qf6 {[%emt 0:00:18]} 29. Re4 {[%emt 0:02:06]} g5 {[%emt 0:01:34]} 30. h4 {[%emt 0:01:18]} h6 {[%emt 0:00:39]} 31. hxg5 {[%emt 0:00:48]} hxg5 {[%emt 0:00:08]} 32. Nd2 {[%emt 0:00:42]} Qf5 {[%emt 0:01:06]} 33. Qe2 {[%emt 0:00:17]} Qg6 {[%emt 0:03:03]} 34. Re7 {[%emt 0:05:58]} Rf7 {[%emt 0:00:39]} 35. Re4 {[%emt 0:00:12]} d5 {[%emt 0:00:53]} 36. cxd5 {[%emt 0:00:11]} Nxd5 {[%emt 0:01:56]} 37. Re8+ {[%emt 0:01:13]} Kh7 {[%emt 0:00:45]} 38. Re6 {[%emt 0:00:44]} Rf6 {[%emt 0:01:00]} 39. Re5 {[%emt 0:01:17]} Rd6 {[%emt 0:00:53]} 40. Re8 {[%emt 0:00:00]} Nf6 {[%emt 0:00:00]} 41. Re5 {[%emt 0:05:22]} Rxd4 {[%emt 0:08:01]} 42. Nf3 {[%emt 0:03:30]} Qb1+ {[%emt 0:04:29]} 43. Qf1 {[%emt 0:00:07]} Rd1 {[%emt 0:00:52]} 44. Re1 {[%emt 0:00:02]} Rxe1 {[%emt 0:00:27]} 45. Qxe1 {[%emt 0:00:03]} Qxe1+ {[%emt 0:00:22]} 46. Nxe1 {[%emt 0:00:04]} Nd5 {[%emt 0:00:25]} 47. g3 {[%emt 0:01:03]} Kg6 {[%emt 0:00:47]} 48. gxf4 {[%emt 0:00:26]} gxf4 {[%emt 0:00:33]} 49. Kg2 {[%emt 0:00:06]} Kf5 {[%emt 0:01:19]} 50. Kf3 {[%emt 0:00:06]} Be5 {[%emt 0:01:16]} 51. Nd3 {[%emt 0:00:29]} Bd6 {[%emt 0:00:21]} 52. Nc1 {[%emt 0:01:15]} Nc3 {[%emt 0:01:55]} 53. Nd3 {[%emt 0:01:13]} Nd5 {[%emt 0:01:49]} 54. Nc1 {[%emt 0:00:07]} b5 {[%emt 0:00:35]} 55. Nb3 {[%emt 0:01:09]} Be5 {[%emt 0:01:09]} 56. Nc1 {[%emt 0:01:18]} Nb4 {[%emt 0:00:43]} 57. Ne2 {[%emt 0:01:06]} Nd3 {[%emt 0:00:40]} 58. Ng1 {[%emt 0:02:03]} b4 {[%emt 0:00:44]} 59. Nh3 {[%emt 0:01:00]} a5 {[%emt 0:00:28]} 60. Ke2 {[%emt 0:00:58]} f3+ {[%emt 0:01:09]} 0-1

[Event "EYCC Girls-U16 2019"]
[Site "Bratislava"]
[Date "2019.08.06"]
[Round "5.9"]
[White "Kvendseth, Thyra"]
[Black "Czarnecka, Lidia"]
[Result "1/2-1/2"]
[ECO "D40"]
[WhiteElo "1977"]
[BlackElo "1731"]
[Annotator "NA"]
[PlyCount "46"]
[EventDate "2019.08.02"]
[EventType "swiss"]
[EventCountry "SVK"]
[SourceTitle "playchess.com"]
[Source "ChessBase"]
[SourceQuality "1"]
[TimeControl "40/5400+30:1800+30"]

1. d4 {[%emt 0:00:00]} d5 {[%emt 0:00:07]} 2. c4 {[%emt 0:00:00]} e6 {[%emt 0:00:09]} 3. Nf3 {[%emt 0:01:54]} Nf6 {[%emt 0:00:33]} 4. Nc3 {[%emt 0:02:42]} c5 {[%emt 0:01:34]} 5. e3 {[%emt 0:02:13]} Nc6 {[%emt 0:00:21]} 6. a3 {[%emt 0:08:56]} a6 {[%emt 0:05:02]} 7. dxc5 {[%emt 0:11:30]} Bxc5 {[%emt 0:00:38]} 8. b4 {[%emt 0:00:07]} Be7 {[%emt 0:00:35]} 9. Bb2 {[%emt 0:02:13]} O-O {[%emt 0:00:59]} 10. Be2 {[%emt 0:00:44]} dxc4 {[%emt 0:01:06]} 11. Bxc4 {[%emt 0:00:28]} b5 {[%emt 0:00:16]} 12. Be2 {[%emt 0:02:47]} Bb7 {[%emt 0:00:11]} 13. O-O {[%emt 0:00:45]} Qb6 {[%emt 0:01:29]} 14. Qb3 {[%emt 0:02:51]} Rfd8 {[%emt 0:01:13]} 15. Rfd1 {[%emt 0:01:54]} Rac8 {[%emt 0:00:39]} 16. Ng5 {[%emt 0:08:59]} Nb8 {[%emt 0:05:36]} 17. Bf3 {[%emt 0:04:16]} Bxf3 {[%emt 0:03:19]} 18. Nxf3 {[%emt 0:00:11]} Nc6 {[%emt 0:01:41]} 19. Ne2 {[%emt 0:02:23]} Nd5 {[%emt 0:02:50]} 20. Nfd4 {[%emt 0:08:50]} Bf6 {[%emt 0:08:12]} 21. Rac1 {[%emt 0:06:32]} Nxd4 {[%emt 0:05:31]} 22. Nxd4 {[%emt 0:00:18]} h6 {[%emt 0:00:58]} 23. h3 {[%emt 0:03:32]} Ne7 {[%emt 0:05:00]} 1/2-1/2

[Event "EYCC Girls-U16 2019"]
[Site "Bratislava"]
[Date "2019.08.06"]
[Round "5.10"]
[White "Lukacs, Anna Kata"]
[Black "Bulatova, Kamaliya"]
[Result "0-1"]
[ECO "B90"]
[WhiteElo "1907"]
[BlackElo "2157"]
[Annotator "NA"]
[PlyCount "102"]
[EventDate "2019.08.02"]
[EventType "swiss"]
[EventCountry "SVK"]
[SourceTitle "playchess.com"]
[Source "ChessBase"]
[SourceQuality "1"]
[TimeControl "40/5400+30:1800+30"]

1. e4 {[%emt 0:00:00]} c5 {[%emt 0:00:00]} 2. Nf3 {[%emt 0:00:00]} d6 {[%emt 0:00:00]} 3. d4 {[%emt 0:00:00]} cxd4 {[%emt 0:00:00]} 4. Nxd4 {[%emt 0:00:00]} Nf6 {[%emt 0:00:00]} 5. Nc3 {[%emt 0:00:11]} a6 {[%emt 0:00:00]} 6. f3 {[%emt 0:00:21]} e5 {[%emt 0:00:31]} 7. Nb3 {[%emt 0:00:16]} Be6 {[%emt 0:00:06]} 8. Be3 {[%emt 0:00:22]} Be7 {[%emt 0:00:23]} 9. Qd2 {[%emt 0:00:14]} O-O {[%emt 0:00:25]} 10. O-O-O {[%emt 0:00:18]} Nbd7 {[%emt 0:00:10]} 11. g4 {[%emt 0:00:12]} b5 {[%emt 0:00:04]} 12. g5 {[%emt 0:00:14]} Nh5 {[%emt 0:00:05]} 13. Nd5 {[%emt 0:00:14]} Bxd5 {[%emt 0:00:33]} 14. exd5 {[%emt 0:00:11]} f6 {[%emt 0:01:06]} 15. gxf6 {[%emt 0:00:29]} Bxf6 {[%emt 0:00:12]} 16. Na5 {[%emt 0:01:43]} Qe8 {[%emt 0:00:14]} 17. Qb4 {[%emt 0:10:13]} Bd8 {[%emt 0:01:52]} 18. Nb7 {[%emt 0:32:05]} Rxf3 {[%emt 0:11:04]} 19. Qe4 {[%emt 0:02:33]} Rxe3 {[%emt 0:10:05]} 20. Qxe3 {[%emt 0:01:07]} Bc7 {[%emt 0:00:37]} 21. Qc3 {[%emt 0:04:27]} Qb8 {[%emt 0:02:30]} 22. Na5 {[%emt 0:04:58]} b4 {[%emt 0:07:04]} 23. Qc6 {[%emt 0:04:43]} Ndf6 {[%emt 0:06:23]} 24. Nb3 {[%emt 0:01:25]} a5 {[%emt 0:01:07]} 25. Bh3 {[%emt 0:06:50]} Nf4 {[%emt 0:01:18]} 26. Be6+ {[%emt 0:01:11]} Kh8 {[%emt 0:00:07]} 27. Rhg1 {[%emt 0:04:46]} Ne2+ {[%emt 0:05:18]} 28. Kb1 {[%emt 0:00:04]} Nxg1 {[%emt 0:00:18]} 29. Rxg1 {[%emt 0:00:05]} Qa7 {[%emt 0:01:05]} 30. Rd1 {[%emt 0:03:23]} Rd8 {[%emt 0:06:51]} 31. Nd2 {[%emt 0:01:32]} a4 {[%emt 0:06:09]} 32. Nf3 {[%emt 0:01:28]} Rf8 {[%emt 0:05:27]} 33. Ng5 {[%emt 0:00:37]} g6 {[%emt 0:05:13]} 34. Nf7+ {[%emt 0:00:41]} Kg7 {[%emt 0:00:04]} 35. Nxd6 {[%emt 0:00:50]} Bxd6 {[%emt 0:03:48]} 36. Qxd6 {[%emt 0:00:07]} e4 {[%emt 0:00:11]} 37. Qxb4 {[%emt 0:02:26]} e3 {[%emt 0:00:15]} 38. Re1 {[%emt 0:02:14]} Rb8 {[%emt 0:00:46]} 39. Qc3 {[%emt 0:02:16]} e2 {[%emt 0:00:41]} 40. Rxe2 {[%emt 0:00:00]} Qg1+ {[%emt 0:00:00]} 41. Qe1 {[%emt 0:05:28]} Qd4 {[%emt 0:00:10]} 42. c3 {[%emt 0:04:40]} Qd3+ {[%emt 0:00:14]} 43. Ka1 {[%emt 0:03:58]} a3 {[%emt 0:00:20]} 44. b3 {[%emt 0:00:28]} Re8 {[%emt 0:04:14]} 45. Qd2 {[%emt 0:02:32]} Qxd2 {[%emt 0:00:32]} 46. Rxd2 {[%emt 0:00:12]} Ne4 {[%emt 0:00:04]} 47. Rc2 {[%emt 0:15:40]} Rf8 {[%emt 0:00:21]} 48. Bh3 {[%emt 0:00:52]} Rf3 {[%emt 0:00:52]} 49. Bg2 {[%emt 0:00:09]} Rd3 {[%emt 0:01:38]} 50. Rc1 {[%emt 0:04:53]} Nxc3 {[%emt 0:00:04]} 51. Rxc3 {[%emt 0:03:52]} Rd1+ {[%emt 0:00:04]} 0-1

[Event "EYCC Girls-U16 2019"]
[Site "Bratislava"]
[Date "2019.08.06"]
[Round "5.11"]
[White "Mikic, Ivana"]
[Black "Djidjeli, Sarah"]
[Result "0-1"]
[ECO "B32"]
[WhiteElo "1884"]
[BlackElo "2017"]
[Annotator "NA"]
[PlyCount "84"]
[EventDate "2019.08.02"]
[EventType "swiss"]
[EventCountry "SVK"]
[SourceTitle "playchess.com"]
[Source "ChessBase"]
[SourceQuality "1"]
[TimeControl "40/5400+30:1800+30"]

1. e4 {[%emt 0:00:00]} c5 {[%emt 0:00:00]} 2. Nf3 {[%emt 0:00:00]} Nc6 {[%emt 0:00:00]} 3. d4 {[%emt 0:00:00]} cxd4 {[%emt 0:00:00]} 4. Nxd4 {[%emt 0:00:00]} e5 {[%emt 0:00:00]} 5. Nb5 {[%emt 0:00:07]} d6 {[%emt 0:00:02]} 6. N1c3 {[%emt 0:00:10]} a6 {[%emt 0:00:13]} 7. Na3 {[%emt 0:00:09]} Be7 {[%emt 0:00:06]} 8. Nc4 {[%emt 0:00:19]} b5 {[%emt 0:00:11]} 9. Ne3 {[%emt 0:00:11]} Nf6 {[%emt 0:00:08]} 10. g3 {[%emt 0:00:30]} h5 {[%emt 0:00:12]} 11. Bg2 {[%emt 0:00:16]} h4 {[%emt 0:00:22]} 12. O-O {[%emt 0:00:15]} h3 {[%emt 0:00:06]} 13. Bh1 {[%emt 0:00:08]} O-O {[%emt 0:00:35]} 14. a4 {[%emt 0:02:42]} b4 {[%emt 0:01:19]} 15. Ncd5 {[%emt 0:00:45]} Nxd5 {[%emt 0:04:10]} 16. Nxd5 {[%emt 0:03:58]} Be6 {[%emt 0:01:46]} 17. Be3 {[%emt 0:04:49]} Rb8 {[%emt 0:04:02]} 18. Qe2 {[%emt 0:08:47]} a5 {[%emt 0:02:34]} 19. Qa6 {[%emt 0:05:02]} Rc8 {[%emt 0:10:49]} 20. Bb6 {[%emt 0:03:36]} Qd7 {[%emt 0:01:55]} 21. Rad1 {[%emt 0:19:37]} Bd8 {[%emt 0:08:24]} 22. Rfe1 {[%emt 0:09:04]} Nb8 {[%emt 0:18:15]} 23. Qxa5 {[%emt 0:05:34]} Bxd5 {[%emt 0:05:45]} 24. Bxd8 {[%emt 0:04:33]} Bc4 {[%emt 0:07:38]} 25. b3 {[%emt 0:09:40]} Rfxd8 {[%emt 0:03:04]} 26. bxc4 {[%emt 0:00:40]} Rxc4 {[%emt 0:00:09]} 27. Rd2 {[%emt 0:01:08]} Rdc8 {[%emt 0:02:54]} 28. Red1 {[%emt 0:02:42]} Rxc2 {[%emt 0:00:55]} 29. Qxb4 {[%emt 0:02:53]} Rxd2 {[%emt 0:02:59]} 30. Qxd2 {[%emt 0:00:02]} Qxa4 {[%emt 0:00:41]} 31. Qxd6 {[%emt 0:00:19]} Nc6 {[%emt 0:00:44]} 32. Re1 {[%emt 0:05:55]} Qa5 {[%emt 0:02:43]} 33. Qd1 {[%emt 0:00:51]} Rd8 {[%emt 0:00:40]} 34. Qe2 {[%emt 0:00:59]} Nd4 {[%emt 0:02:52]} 35. Qf1 {[%emt 0:01:19]} Qd2 {[%emt 0:01:15]} 36. Re3 {[%emt 0:01:41]} Nc2 {[%emt 0:00:45]} 37. Rb3 {[%emt 0:06:29]} Nd4 {[%emt 0:00:54]} 38. Re3 {[%emt 0:00:29]} Rc8 {[%emt 0:00:19]} 39. Re1 {[%emt 0:00:53]} Rc2 {[%emt 0:00:48]} 40. Bg2 {[%emt 0:00:00]} hxg2 {[%emt 0:00:00]} 41. Kxg2 {[%emt 0:02:39]} Qc3 {[%emt 0:02:05]} 42. Re3 {[%emt 0:00:30]} Qxe3 {[%emt 0:00:16]} 0-1

[Event "EYCC Girls-U16 2019"]
[Site "Bratislava"]
[Date "2019.08.06"]
[Round "5.12"]
[White "Dylag, Emilia"]
[Black "Diez, Ambre"]
[Result "1/2-1/2"]
[ECO "E76"]
[WhiteElo "2099"]
[BlackElo "1908"]
[Annotator "NA"]
[PlyCount "117"]
[EventDate "2019.08.02"]
[EventType "swiss"]
[EventCountry "SVK"]
[SourceTitle "playchess.com"]
[Source "ChessBase"]
[SourceQuality "1"]
[TimeControl "40/5400+30:1800+30"]

1. d4 {[%emt 0:00:00]} Nf6 {[%emt 0:00:00]} 2. c4 {[%emt 0:00:00]} g6 {[%emt 0:00:00]} 3. Nc3 {[%emt 0:00:42]} Bg7 {[%emt 0:00:00]} 4. e4 {[%emt 0:00:22]} d6 {[%emt 0:00:10]} 5. f4 {[%emt 0:00:45]} e5 {[%emt 0:02:32]} 6. fxe5 {[%emt 0:04:55]} dxe5 {[%emt 0:00:14]} 7. d5 {[%emt 0:00:21]} Nbd7 {[%emt 0:04:30]} 8. Nf3 {[%emt 0:04:48]} O-O {[%emt 0:03:04]} 9. Bd3 {[%emt 0:02:12]} b6 {[%emt 0:03:10]} 10. O-O {[%emt 0:01:57]} Ne8 {[%emt 0:01:33]} 11. Bc2 {[%emt 0:05:56]} Nd6 {[%emt 0:01:32]} 12. Qe2 {[%emt 0:05:39]} a5 {[%emt 0:03:49]} 13. Be3 {[%emt 0:19:46]} Bb7 {[%emt 0:12:10]} 14. Rad1 {[%emt 0:05:58]} Qe7 {[%emt 0:03:13]} 15. a3 {[%emt 0:07:49]} f5 {[%emt 0:14:57]} 16. exf5 {[%emt 0:03:42]} Nxf5 {[%emt 0:02:08]} 17. Bg5 {[%emt 0:02:21]} Qc5+ {[%emt 0:10:20]} 18. Kh1 {[%emt 0:00:33]} Rf7 {[%emt 0:00:39]} 19. Ne4 {[%emt 0:04:01]} Qf8 {[%emt 0:00:55]} 20. Bd2 {[%emt 0:11:08]} h6 {[%emt 0:07:16]} 21. Bc3 {[%emt 0:01:52]} c6 {[%emt 0:09:32]} 22. d6 {[%emt 0:04:23]} c5 {[%emt 0:04:05]} 23. Ba4 {[%emt 0:00:46]} Qe8 {[%emt 0:04:20]} 24. Rfe1 {[%emt 0:02:54]} Qe6 {[%emt 0:01:58]} 25. Qd3 {[%emt 0:05:07]} Nd4 {[%emt 0:01:49]} 26. Bxd4 {[%emt 0:00:50]} cxd4 {[%emt 0:00:14]} 27. Bb5 {[%emt 0:02:08]} Rf4 {[%emt 0:02:54]} 28. c5 {[%emt 0:01:26]} bxc5 {[%emt 0:01:38]} 29. Bxd7 {[%emt 0:00:27]} Qxd7 {[%emt 0:01:07]} 30. Nxc5 {[%emt 0:00:09]} Qc6 {[%emt 0:00:58]} 31. Qb3+ {[%emt 0:00:56]} Rf7 {[%emt 0:00:59]} 32. Nxb7 {[%emt 0:01:28]} Qxb7 {[%emt 0:00:11]} 33. Qxb7 {[%emt 0:00:29]} Rxb7 {[%emt 0:00:06]} 34. Nxe5 {[%emt 0:00:09]} Rd8 {[%emt 0:00:39]} 35. Rxd4 {[%emt 0:00:54]} Rxb2 {[%emt 0:00:25]} 36. h3 {[%emt 0:00:27]} Rb6 {[%emt 0:01:01]} 37. d7 {[%emt 0:00:29]} Rb7 {[%emt 0:00:55]} 38. Rd5 {[%emt 0:00:25]} Bxe5 {[%emt 0:01:53]} 39. Rexe5 {[%emt 0:00:05]} Rbxd7 {[%emt 0:00:21]} 40. Rxd7 {[%emt 0:00:00]} Rxd7 {[%emt 0:00:00]} 41. Rxa5 {[%emt 0:00:19]} Kf7 {[%emt 0:00:42]} 42. Ra6 {[%emt 0:01:51]} Rd1+ {[%emt 0:00:26]} 43. Kh2 {[%emt 0:00:08]} Ra1 {[%emt 0:00:07]} 44. Kg3 {[%emt 0:00:22]} Ra2 {[%emt 0:01:02]} 45. Kf3 {[%emt 0:00:32]} Kg7 {[%emt 0:01:06]} 46. g3 {[%emt 0:01:30]} Ra1 {[%emt 0:02:31]} 47. a4 {[%emt 0:01:33]} h5 {[%emt 0:02:03]} 48. a5 {[%emt 0:12:28]} Kh6 {[%emt 0:00:22]} 49. Ra8 {[%emt 0:01:39]} Ra3+ {[%emt 0:00:30]} 50. Kf4 {[%emt 0:04:08]} g5+ {[%emt 0:01:14]} 51. Kf5 {[%emt 0:00:34]} Rf3+ {[%emt 0:00:13]} 52. Ke4 {[%emt 0:06:40]} Rxg3 {[%emt 0:00:56]} 53. a6 {[%emt 0:00:04]} Ra3 {[%emt 0:00:57]} 54. Kf5 {[%emt 0:00:47]} Ra5+ {[%emt 0:01:00]} 55. Kf6 {[%emt 0:00:46]} Kh7 {[%emt 0:00:11]} 56. Ra7+ {[%emt 0:00:26]} Kh6 {[%emt 0:01:00]} 57. Ra8 {[%emt 0:02:25]} Kh7 {[%emt 0:00:09]} 58. Ra7+ {[%emt 0:01:59]} Kh6 {[%emt 0:00:07]} 59. Ra8 {[%emt 0:00:55]} 1/2-1/2

[Event "EYCC Girls-U16 2019"]
[Site "Bratislava"]
[Date "2019.08.06"]
[Round "5.13"]
[White "Donghvani, Nia"]
[Black "Jarocka, Liwia"]
[Result "1/2-1/2"]
[ECO "A25"]
[WhiteElo "1864"]
[BlackElo "2102"]
[Annotator "NA"]
[PlyCount "58"]
[EventDate "2019.08.02"]
[EventType "swiss"]
[EventCountry "SVK"]
[SourceTitle "playchess.com"]
[Source "ChessBase"]
[SourceQuality "1"]
[TimeControl "40/5400+30:1800+30"]

1. c4 {[%emt 0:00:00]} e5 {[%emt 0:00:00]} 2. Nc3 {[%emt 0:00:00]} Nc6 {[%emt 0:00:00]} 3. g3 {[%emt 0:00:00]} f5 {[%emt 0:00:02]} 4. Bg2 {[%emt 0:01:11]} Nf6 {[%emt 0:00:08]} 5. a3 {[%emt 0:01:33]} g6 {[%emt 0:00:34]} 6. e3 {[%emt 0:03:40]} e4 {[%emt 0:14:51]} 7. d3 {[%emt 0:07:04]} exd3 {[%emt 0:00:10]} 8. Qxd3 {[%emt 0:00:02]} Bg7 {[%emt 0:00:37]} 9. Nf3 {[%emt 0:04:39]} d6 {[%emt 0:04:30]} 10. O-O {[%emt 0:03:18]} O-O {[%emt 0:00:19]} 11. Qc2 {[%emt 0:10:25]} Qe7 {[%emt 0:13:31]} 12. b3 {[%emt 0:04:28]} Nd8 {[%emt 0:13:19]} 13. Bb2 {[%emt 0:15:32]} c6 {[%emt 0:00:11]} 14. Rad1 {[%emt 0:01:30]} Nf7 {[%emt 0:02:02]} 15. Rfe1 {[%emt 0:07:05]} Re8 {[%emt 0:00:31]} 16. Nd4 {[%emt 0:05:11]} Ne4 {[%emt 0:05:04]} 17. b4 {[%emt 0:01:39]} Bd7 {[%emt 0:03:09]} 18. b5 {[%emt 0:08:13]} Nfg5 {[%emt 0:06:09]} 19. bxc6 {[%emt 0:01:08]} bxc6 {[%emt 0:00:36]} 20. Nce2 {[%emt 0:01:35]} Rab8 {[%emt 0:05:17]} 21. Ba1 {[%emt 0:00:27]} c5 {[%emt 0:05:58]} 22. Nb5 {[%emt 0:01:32]} Bc6 {[%emt 0:03:54]} 23. Nf4 {[%emt 0:02:01]} Bxa1 {[%emt 0:05:50]} 24. Rxa1 {[%emt 0:00:11]} Qb7 {[%emt 0:00:07]} 25. h4 {[%emt 0:03:18]} Ne6 {[%emt 0:00:34]} 26. Rab1 {[%emt 0:04:21]} Qd7 {[%emt 0:01:28]} 27. Nxe6 {[%emt 0:02:51]} Rxe6 {[%emt 0:01:27]} 28. Nc3 {[%emt 0:04:09]} Rxb1 {[%emt 0:05:18]} 29. Rxb1 {[%emt 0:00:05]} Nxc3 {[%emt 0:00:57]} 1/2-1/2

[Event "EYCC Girls-U16 2019"]
[Site "Bratislava"]
[Date "2019.08.06"]
[Round "5.14"]
[White "Dubovyk, Anastasiia"]
[Black "Pipia, Ekaterine"]
[Result "1-0"]
[ECO "B06"]
[WhiteElo "1824"]
[BlackElo "1945"]
[Annotator "NA"]
[PlyCount "77"]
[EventDate "2019.08.02"]
[EventType "swiss"]
[EventCountry "SVK"]
[SourceTitle "playchess.com"]
[Source "ChessBase"]
[SourceQuality "1"]
[TimeControl "40/5400+30:1800+30"]

1. e4 {[%emt 0:00:00]} g6 {[%emt 0:00:00]} 2. d4 {[%emt 0:00:00]} Bg7 {[%emt 0:00:00]} 3. Nf3 {[%emt 0:00:00]} d6 {[%emt 0:00:00]} 4. Nc3 {[%emt 0:00:00]} a6 {[%emt 0:00:00]} 5. Be3 {[%emt 0:00:37]} b5 {[%emt 0:00:00]} 6. Bd3 {[%emt 0:00:30]} Nd7 {[%emt 0:00:03]} 7. a4 {[%emt 0:01:27]} b4 {[%emt 0:00:30]} 8. Ne2 {[%emt 0:00:11]} Bb7 {[%emt 0:01:15]} 9. Ng3 {[%emt 0:05:54]} h5 {[%emt 0:01:55]} 10. h4 {[%emt 0:12:58]} Nh6 {[%emt 0:00:54]} 11. c3 {[%emt 0:04:21]} bxc3 {[%emt 0:01:57]} 12. bxc3 {[%emt 0:00:15]} Ng4 {[%emt 0:04:38]} 13. Bd2 {[%emt 0:01:17]} O-O {[%emt 0:01:27]} 14. Ng5 {[%emt 0:05:53]} c5 {[%emt 0:03:46]} 15. Ne2 {[%emt 0:03:05]} cxd4 {[%emt 0:10:39]} 16. cxd4 {[%emt 0:00:23]} Qb6 {[%emt 0:03:21]} 17. Rb1 {[%emt 0:04:19]} Qa7 {[%emt 0:00:32]} 18. f3 {[%emt 0:03:34]} Nh6 {[%emt 0:05:48]} 19. g4 {[%emt 0:18:05]} hxg4 {[%emt 0:03:32]} 20. h5 {[%emt 0:02:12]} gxf3 {[%emt 0:12:03]} 21. Nxf3 {[%emt 0:01:19]} g5 {[%emt 0:07:33]} 22. Bxg5 {[%emt 0:01:16]} Nf6 {[%emt 0:06:09]} 23. Rg1 {[%emt 0:01:48]} Kh8 {[%emt 0:01:08]} 24. Qd2 {[%emt 0:01:31]} Nfg4 {[%emt 0:03:25]} 25. Rg3 {[%emt 0:15:21]} e5 {[%emt 0:05:26]} 26. Nh2 {[%emt 0:01:50]} f5 {[%emt 0:05:18]} 27. Nxg4 {[%emt 0:01:18]} Nxg4 {[%emt 0:00:34]} 28. h6 {[%emt 0:02:21]} Bf6 {[%emt 0:01:06]} 29. exf5 {[%emt 0:02:43]} Nh2 {[%emt 0:04:22]} 30. Bxf6+ {[%emt 0:00:30]} Rxf6 {[%emt 0:00:30]} 31. Qg5 {[%emt 0:06:42]} Rf7 {[%emt 0:00:00]} 32. Qh5 {[%emt 0:01:42]} Bf3 {[%emt 0:00:00]} 33. Rxf3 {[%emt 0:00:00]} Nxf3+ {[%emt 0:00:12]} 34. Qxf3 {[%emt 0:00:25]} exd4 {[%emt 0:03:16]} 35. Rb6 {[%emt 0:00:54]} Re8 {[%emt 0:02:48]} 36. Qd5 {[%emt 0:01:33]} Qxb6 {[%emt 0:04:49]} 37. Qxf7 {[%emt 0:00:09]} Qa5+ {[%emt 0:00:07]} 38. Kf1 {[%emt 0:00:54]} Qe5 {[%emt 0:00:08]} 39. f6 {[%emt 0:00:29]} 1-0

[Event "EYCC Girls-U16 2019"]
[Site "Bratislava"]
[Date "2019.08.06"]
[Round "5.15"]
[White "Levitan, Ronit"]
[Black "Muedder, Melanie"]
[Result "1/2-1/2"]
[ECO "B22"]
[WhiteElo "2022"]
[BlackElo "1905"]
[Annotator "NA"]
[PlyCount "82"]
[EventDate "2019.08.02"]
[EventType "swiss"]
[EventCountry "SVK"]
[SourceTitle "playchess.com"]
[Source "ChessBase"]
[SourceQuality "1"]
[TimeControl "40/5400+30:1800+30"]

1. e4 {[%emt 0:00:00]} c5 {[%emt 0:00:00]} 2. c3 {[%emt 0:00:00]} d5 {[%emt 0:00:00]} 3. exd5 {[%emt 0:00:00]} Qxd5 {[%emt 0:00:02]} 4. d4 {[%emt 0:00:03]} Nc6 {[%emt 0:00:29]} 5. Nf3 {[%emt 0:00:21]} Bf5 {[%emt 0:00:19]} 6. Na3 {[%emt 0:05:43]} cxd4 {[%emt 0:00:51]} 7. Bc4 {[%emt 0:05:50]} Qe4+ {[%emt 0:02:00]} 8. Be3 {[%emt 0:02:58]} e6 {[%emt 0:01:18]} 9. cxd4 {[%emt 0:17:44]} Bb4+ {[%emt 0:03:53]} 10. Kf1 {[%emt 0:00:19]} Bxa3 {[%emt 0:04:19]} 11. bxa3 {[%emt 0:00:09]} Nf6 {[%emt 0:01:30]} 12. h3 {[%emt 0:04:38]} O-O {[%emt 0:11:38]} 13. Ng5 {[%emt 0:14:51]} Qc2 {[%emt 0:01:37]} 14. Qxc2 {[%emt 0:01:01]} Bxc2 {[%emt 0:00:05]} 15. Rc1 {[%emt 0:01:04]} Bg6 {[%emt 0:03:11]} 16. Ke2 {[%emt 0:01:29]} h6 {[%emt 0:07:50]} 17. Nf3 {[%emt 0:00:58]} Be4 {[%emt 0:03:26]} 18. Rhg1 {[%emt 0:06:25]} Rfd8 {[%emt 0:06:29]} 19. Rgd1 {[%emt 0:03:52]} Nd5 {[%emt 0:07:56]} 20. g4 {[%emt 0:07:05]} Nb6 {[%emt 0:09:33]} 21. Bb3 {[%emt 0:00:28]} Rac8 {[%emt 0:01:49]} 22. Ne5 {[%emt 0:02:16]} Na5 {[%emt 0:04:16]} 23. f3 {[%emt 0:04:34]} Bh7 {[%emt 0:07:53]} 24. Nd3 {[%emt 0:10:56]} Nd5 {[%emt 0:12:11]} 25. Bd2 {[%emt 0:03:26]} Nc6 {[%emt 0:00:30]} 26. Bxd5 {[%emt 0:00:46]} Bxd3+ {[%emt 0:02:44]} 27. Kxd3 {[%emt 0:00:24]} Rxd5 {[%emt 0:00:10]} 28. Be3 {[%emt 0:02:07]} Rcd8 {[%emt 0:00:56]} 29. Ke2 {[%emt 0:01:19]} R5d7 {[%emt 0:02:38]} 30. Rd2 {[%emt 0:01:21]} Ne7 {[%emt 0:01:04]} 31. Rdc2 {[%emt 0:01:12]} Nd5 {[%emt 0:00:49]} 32. Rc8 {[%emt 0:00:28]} Kf8 {[%emt 0:01:06]} 33. Rxd8+ {[%emt 0:00:54]} Rxd8 {[%emt 0:00:07]} 34. Rc5 {[%emt 0:00:09]} b6 {[%emt 0:01:41]} 35. Rc4 {[%emt 0:00:16]} Ke7 {[%emt 0:00:42]} 36. h4 {[%emt 0:00:36]} Kd7 {[%emt 0:00:40]} 37. Bd2 {[%emt 0:00:49]} a5 {[%emt 0:00:46]} 38. h5 {[%emt 0:00:54]} Rc8 {[%emt 0:00:53]} 39. Rxc8 {[%emt 0:00:58]} Kxc8 {[%emt 0:00:08]} 40. f4 {[%emt 0:00:00]} f6 {[%emt 0:00:00]} 41. g5 {[%emt 0:05:47]} f5 {[%emt 0:09:27]} 1/2-1/2